lending/lending_fUSD_20250409
["ID","MTS","AMOUNT","RATE_DAILY","PERIOD"]
[357567157,1744176631846,-2159.73,0.00018743,2]
[357567158,1744176631856,-848.6,0.00018935,2]
[357567159,1744176631866,-500.0,0.00018973,2]
[357567160,1744176631876,-500.0,0.00018973,2]
[357567161,1744176631885,-500.0,0.00018973,2]
[357567162,1744176631895,-255.0,0.00018999,2]
[357567163,1744176631905,-5505.83702875,0.00019,2]
[357567186,1744176637875,-597.14919455,0.00019,2]
[357567187,1744176637987,-55158.43197008,0.00019,2]
[357567188,1744176637997,-250.0,0.00019,2]
[357567189,1744176638007,-9688.0,0.00019059,2]
[357567190,1744176638016,-166.66,0.00019272,2]
[357567191,1744176638027,-3018.7291007,0.00019399,2]
[357567192,1744176638036,-725.02246975,0.000194,2]
[357567193,1744176638045,-826.42,0.00019536,2]
[357567194,1744176638054,-826.42,0.00019541,2]
[357567195,1744176638063,-162.2292987,0.00019546,2]
[357567196,1744176638076,-826.42,0.00019546,2]
[357567197,1744176638086,-826.42,0.00019551,2]
[357567198,1744176638097,-826.42,0.00019556,2]
[357567199,1744176638108,-826.42,0.00019562,2]
[357567200,1744176638119,-826.42,0.00019567,2]
[357567201,1744176638130,-826.42,0.00019572,2]
[357567202,1744176638140,-826.42,0.00019577,2]
[357567203,1744176638151,-826.42,0.00019582,2]
[357567204,1744176638160,-826.42,0.00019587,2]
[357567205,1744176638228,-826.42,0.00019592,2]
[357567206,1744176638238,-826.42,0.00019598,2]
[357567208,1744176638248,-3216.12,0.000196,2]
[357567210,1744176638258,-826.42,0.00019603,2]
[357567212,1744176638267,-411.12101183,0.00019608,2]
[357567216,1744176638296,-415.29898817,0.00019608,2]
[357567218,1744176638305,-485.19084189,0.00019613,2]
[357567220,1744176638316,-341.22915811,0.00019613,2]
[357567222,1744176638326,-826.42,0.00019618,2]
[357567224,1744176638335,-826.42,0.00019623,2]
[357567226,1744176638344,-394.53084709,0.00019628,2]
[357567228,1744176638355,-431.88915291,0.00019628,2]
[357567231,1744176638364,-796.07499042,0.00019634,2]
[357567239,1744176638434,-30.34500958,0.00019634,2]
[357567241,1744176638444,-968.516,0.00019699,2]
[357567243,1744176638453,-1000.0,0.000197,2]
[357567245,1744176638462,-151.5,0.00019737,2]
[357567247,1744176638472,-877.83,0.00019739,2]
[357567249,1744176638481,-2401.3316,0.000198,2]
[357567251,1744176638491,-1000.0,0.000198,2]
[357567253,1744176638500,-1000.0,0.000198,2]
[357567254,1744176638510,-7659.27759614,0.000198,2]
[357567287,1744176639924,-1757.204484,0.000198,2]
[357567288,1744176639936,-1030.52861071,0.000198,2]
[357567289,1744176639983,-269.01180832,0.000198,2]
[357567290,1744176639993,-472.60361726,0.000198,7]
[357567291,1744176640004,-427.39638274,0.000198,7]
[357567292,1744176640013,-200.0,0.00019816,2]
[357567293,1744176640022,-485.03297741,0.00019873,2]
[357567294,1744176640102,-25.4891334,0.00019873,2]
[357567295,1744176640112,-481.65916647,0.00019876,2]
[357567296,1744176640123,-1086.52826607,0.00019876,2]
[357567297,1744176640138,-633.0647746,0.00019876,2]
[357567298,1744176640167,-1093.79716108,0.00019876,2]
[357567317,1744176642757,-969.13933366,0.00019876,2]
[357567332,1744176645746,-21059.99178987,0.00019876,2]
[357567333,1744176645756,-156.24784859,0.00019886,2]
[357567334,1744176645766,-268.2967,0.00019886,2]
[357567335,1744176645775,-1647.66366154,0.000199,2]
[357567342,1744177531105,-819.11,0.00016829,2]
[357567343,1744177531126,-250.0,0.0001777,2]
[357567344,1744177531147,-250.0,0.00018512,2]
[357567345,1744177531168,-776.43275228,0.00018593,2]
[357567346,1744177628081,-189.598454,0.00018547,2]
[357567347,1744177628102,-250.0,0.0001864,2]
[357567348,1744177628122,-150.0,0.00018687,2]
[357567349,1744177628143,-250.0,0.00018757,2]
[357567350,1744177628163,-250.0,0.00018806,2]
[357567351,1744177628183,-151.5,0.00018837,2]
[357567352,1744177628203,-533.52809185,0.00018859,2]
[357567353,1744177639102,-169.24301249,0.00018859,2]
[357567357,1744177831810,-4737.37,0.00018789,2]
[357567358,1744177831820,-6166.78802534,0.00018789,2]
[357567359,1744177831831,-8217.59609124,0.00018789,2]
[357567360,1744177831843,-5984.5947902,0.00018789,2]
[357567361,1744177831854,-3531.02109322,0.00018789,2]
[357567362,1744177831863,-37.15889566,0.00018859,2]
[357567363,1744177831873,-200.0,0.00018891,2]
[357567364,1744177831882,-437.3953,0.000189,2]
[357567365,1744177831891,-738.8354,0.000189,2]
[357567366,1744177831901,-1182.81731112,0.00019028,2]
[357567367,1744177831913,-3253.93499041,0.00019028,2]
[357567368,1744177831925,-8008.63769847,0.00019028,2]
[357567369,1744177831934,-1000.0,0.00019053,2]
[357567370,1744177831944,-819.11,0.00019093,2]
[357567371,1744177831955,-2264.0468255,0.00019399,2]
[357567372,1744177831965,-1000.0,0.0001943,2]
[357567373,1744177831975,-166.8884071,0.0001943,2]
[357567374,1744177831984,-2970.5845,0.00019518,2]
[357567375,1744177831995,-797.91760279,0.00019592,2]
[357567376,1744177832004,-405.0,0.00019599,2]
[357567377,1744177832013,-1936.0,0.000196,2]
[357567378,1744177832024,-837.284,0.00019602,2]
[357567379,1744177832034,-500.0,0.00019699,2]
[357567380,1744177832046,-1000.0,0.000197,2]
[357567381,1744177832055,-261.84157041,0.00019702,2]
[357567382,1744177832065,-1000.0,0.00019776,2]
[357567383,1744177832074,-501.32948064,0.0001979,2]
[357567384,1744177832084,-10281.0672,0.000198,2]
[357567385,1744177832093,-12201.8121,0.000198,2]
[357567386,1744177832102,-11440.13023247,0.000198,2]
[357567388,1744177832112,-210.8174,0.000198,2]
[357567390,1744177832122,-968.6679,0.000198,2]
[357567391,1744177832131,-1012.0,0.000198,2]
[357567392,1744177832141,-800.0,0.000198,7]
[357567393,1744177832150,-3822.5386,0.000198,2]
[357567394,1744177832159,-600.77288526,0.00019873,2]
[357567395,1744177832169,-10000.0,0.0001988,2]
[357567396,1744177832178,-352.7265,0.00019886,2]
[357567397,1744177832187,-27016.5206,0.00019886,2]
[357567398,1744177832197,-256.4154,0.00019886,2]
[357567399,1744177832206,-452.36861202,0.000199,3]
[357567400,1744177832216,-20320.9728,0.000199,2]
[357567402,1744177832225,-161.09892695,0.000199,2]
[357567403,1744177832234,-151.0,0.000199,2]
[357567405,1744177832243,-160.929033,0.000199,2]
[357567407,1744177832252,-151.0,0.000199,2]
[357567409,1744177832262,-151.0,0.000199,2]
[357567411,1744177832271,-155.642591,0.000199,2]
[357567414,1744177832281,-155.484069,0.000199,2]
[357567417,1744177832293,-151.0,0.000199,2]
[357567420,1744177832302,-151.0,0.000199,2]
[357567422,1744177832311,-154.913324,0.000199,2]
[357567424,1744177832320,-151.0,0.000199,2]
[357567426,1744177832329,-153.751322,0.000199,2]
[357567428,1744177832338,-151.0,0.000199,2]
[357567430,1744177832347,-152.144748,0.000199,2]
[357567431,1744177832357,-153.413182,0.000199,2]
[357567433,1744177832367,-151.0,0.000199,2]
[357567435,1744177832375,-151.0,0.000199,2]
[357567437,1744177832385,-341.942127,0.000199,2]
[357567439,1744177832394,-151.434378,0.000199,2]
[357567441,1744177832403,-151.0,0.000199,2]
[357567443,1744177832413,-151.0,0.000199,2]
[357567445,1744177832422,-151.0,0.000199,2]
[357567447,1744177832431,-151.0,0.000199,2]
[357567449,1744177832440,-151.0,0.000199,2]
[357567451,1744177832449,-153.057212,0.000199,2]
[357567453,1744177832459,-215.807431,0.000199,2]
[357567455,1744177832469,-152.446118,0.000199,2]
[357567456,1744177832479,-151.0,0.000199,2]
[357567458,1744177832488,-234.003041,0.000199,2]
[357567460,1744177832498,-151.0,0.000199,2]
[357567462,1744177832507,-234.003041,0.000199,2]
[357567464,1744177832516,-151.0,0.000199,2]
[357567466,1744177832526,-193.506319,0.000199,2]
[357567468,1744177832537,-151.0,0.000199,2]
[357567470,1744177832547,-152.066594,0.000199,2]
[357567472,1744177832556,-151.0,0.000199,2]
[357567474,1744177832565,-157.01587,0.000199,2]
[357567476,1744177832575,-151.0,0.000199,2]
[357567477,1744177832584,-160.340899,0.000199,2]
[357567479,1744177832594,-153.634804,0.000199,2]
[357567482,1744177832605,-154.436567,0.000199,2]
[357567483,1744177832615,-151.0,0.000199,2]
[357567485,1744177832624,-1700.0,0.000199,7]
[357567487,1744177832634,-153.60648,0.000199,2]
[357567489,1744177832643,-153.504491,0.000199,2]
[357567491,1744177832652,-156.758865,0.000199,2]
[357567493,1744177832661,-11528.45007939,0.000199,2]
[357567495,1744177832671,-151.0,0.000199,2]
[357567497,1744177832680,-151.0,0.000199,2]
[357567499,1744177832689,-156.573961,0.000199,2]
[357567501,1744177832698,-173.113902,0.000199,2]
[357567503,1744177832707,-173.113902,0.000199,2]
[357567505,1744177832717,-151.0,0.000199,2]
[357567507,1744177832726,-158.56796,0.000199,2]
[357567508,1744177832735,-156.24784854,0.000199,2]
[357567510,1744177832745,-151.0,0.000199,2]
[357567511,1744177832755,-152.436731,0.000199,2]
[357567512,1744177832764,-170.444737,0.000199,2]
[357567513,1744177832774,-151.0,0.000199,2]
[357567514,1744177832783,-151.0,0.000199,2]
[357567515,1744177832794,-2380.684102,0.000199,2]
[357567516,1744177832803,-151.0,0.000199,2]
[357567517,1744177832812,-2380.684102,0.000199,2]
[357567518,1744177832821,-184.31635816,0.000199,2]
[357567519,1744177832831,-151.0,0.000199,2]
[357567520,1744177832840,-151.0,0.000199,2]
[357567521,1744177832849,-2487.49557445,0.000199,2]
[357567522,1744177832858,-151.0,0.000199,2]
[357567523,1744177832867,-159.255892,0.000199,2]
[357567524,1744177832876,-154.710849,0.000199,2]
[357567525,1744177832886,-156.735451,0.000199,2]
[357567526,1744177832895,-151.0,0.000199,2]
[357567527,1744177832904,-153.892656,0.000199,2]
[357567528,1744177832914,-166.66,0.00019908,2]
[357567529,1744177832924,-1047.16672876,0.00019908,2]
[357567530,1744177832933,-500.0,0.00019973,2]
[357567531,1744177832944,-500.0,0.00019973,2]
[357567532,1744177832956,-303.15175342,0.00019973,2]
[357567533,1744177832965,-153.00545,0.00019973,2]
[357567534,1744177832976,-151.0,0.00019973,2]
[357567535,1744177832986,-151.0,0.00019973,2]
[357567536,1744177832996,-152.366275,0.00019973,2]
[357567537,1744177833005,-2734.28276432,0.00019979,2]
[357567538,1744177833051,-8042.41270234,0.00019979,2]
[357567539,1744177833061,-153.059952,0.00019986,2]
[357567540,1744177833070,-153.730586,0.00019986,2]
[357567541,1744177833079,-154.245728,0.00019986,2]
[357567542,1744177833089,-159.139401,0.00019986,2]
[357567543,1744177833098,-151.0,0.00019986,2]
[357567544,1744177833107,-151.0,0.00019986,2]
[357567545,1744177833117,-151.0,0.00019986,2]
[357567546,1744177833127,-159.31518,0.00019986,2]
[357567547,1744177833137,-151.0,0.00019986,2]
[357567548,1744177833146,-151.0,0.00019986,2]
[357567549,1744177833156,-151.0,0.00019986,2]
[357567550,1744177833166,-151.0,0.00019986,2]
[357567551,1744177833175,-184.496757,0.00019986,2]
[357567552,1744177833184,-151.0,0.00019986,2]
[357567553,1744177833194,-151.0,0.00019986,2]
[357567554,1744177833203,-158.422132,0.00019986,2]
[357567555,1744177833213,-153.261055,0.00019986,2]
[357567556,1744177833222,-1755.4292707,0.00019986,2]
[357567560,1744177838186,-158.846847,0.000199,2]
[357567561,1744177838196,-151.0,0.000199,2]
[357567562,1744177838206,-626.6354397,0.00019986,2]
[357567563,1744177838215,-292.549263,0.00019986,2]
[357567564,1744177838224,-234.003041,0.00019986,2]
[357567565,1744177838234,-128.51390331,0.00019986,2]
[357567567,1744177838276,-22.48609669,0.00019986,2]
[357567569,1744177838285,-234.003041,0.00019986,2]
[357567570,1744177838294,-151.0,0.00019986,2]
[357567571,1744177838304,-151.0,0.00019986,2]
[357567572,1744177838313,-160.409218,0.00019986,2]
[357567573,1744177838323,-15498.2120085,0.00019986,2]
[357567574,1744177838333,-151.0,0.00019986,2]
[357567575,1744177838342,-151.0,0.00019986,2]
[357567576,1744177838352,-10633.58112196,0.00019986,2]
[357567577,1744177838371,-2683.6833661,0.00019986,2]
[357567578,1744177838456,-1426.11733834,0.00019986,2]
[357567579,1744177838465,-660.5521467,0.00019986,2]
[357567580,1744177838475,-151.0,0.00019986,2]
[357567581,1744177838486,-151.0,0.00019986,2]
[357567582,1744177838495,-173.113902,0.00019986,2]
[357567583,1744177838504,-173.113902,0.00019986,2]
[357567584,1744177838513,-173.113902,0.00019986,2]
[357567585,1744177838524,-173.113902,0.00019986,2]
[357567586,1744177838533,-155.115862,0.00019986,2]
[357567587,1744177838545,-159.380461,0.00019986,2]
[357567588,1744177838554,-151.0,0.00019986,2]
[357567589,1744177838563,-2380.684102,0.00019986,2]
[357567590,1744177838574,-151.0,0.00019986,2]
[357567591,1744177838585,-2380.684102,0.00019986,2]
[357567592,1744177838594,-238.00116,0.00019986,2]
[357567593,1744177838603,-2380.684102,0.00019986,2]
[357567594,1744177838613,-2380.684102,0.00019986,2]
[357567595,1744177838622,-151.0,0.00019986,2]
[357567596,1744177838631,-151.0,0.00019986,2]
[357567597,1744177838641,-151.0,0.00019986,2]
[357567598,1744177838651,-168.038263,0.00019986,2]
[357567599,1744177838659,-3326.4239656,0.00019986,2]
[357567600,1744177838669,-151.0,0.00019986,2]
[357567601,1744177838678,-151.0,0.00019986,2]
[357567602,1744177838687,-1204.0968171,0.00019986,2]
[357567603,1744177838697,-154.717108,0.00019986,2]
[357567604,1744177838707,-151.0,0.00019986,2]
[357567605,1744177838717,-151.0,0.00019986,2]
[357567606,1744177838726,-255.14829989,0.0001999,2]
[357567607,1744177838735,-2149.0,0.0002,2]
[357567608,1744177838744,-3129.41309762,0.0002,2]
[357567609,1744177838753,-1251.78093407,0.0002,5]
[357567610,1744177838763,-48495.06099762,0.0002,4]
[357567611,1744177838772,-773188.72296376,0.0002,2]
[357567612,1744177838781,-286389.66736896,0.0002,2]
[357567613,1744177838791,-151.0,0.0002,2]
[357567614,1744177838800,-151.0,0.0002,2]
[357567615,1744177838809,-152.309273,0.0002,2]
[357567616,1744177838819,-151.0,0.0002,2]
[357567617,1744177838828,-152.098811,0.0002,2]
[357567618,1744177838837,-151.0,0.0002,2]
[357567619,1744177838846,-151.0,0.0002,2]
[357567620,1744177838855,-163.520382,0.0002,2]
[357567621,1744177838864,-151.0,0.0002,2]
[357567622,1744177838874,-151.0,0.0002,2]
[357567623,1744177838883,-151.0,0.0002,2]
[357567624,1744177838893,-151.0,0.0002,2]
[357567625,1744177838902,-288.92036,0.0002,2]
[357567626,1744177838912,-234.003041,0.0002,2]
[357567627,1744177838921,-234.003041,0.0002,2]
[357567628,1744177838930,-234.003041,0.0002,2]
[357567629,1744177838940,-151.0,0.0002,2]
[357567630,1744177838952,-151.0,0.0002,2]
[357567631,1744177838961,-151.0,0.0002,2]
[357567632,1744177838971,-234.003041,0.0002,2]
[357567633,1744177838980,-234.003041,0.0002,2]
[357567634,1744177838991,-234.003041,0.0002,2]
[357567635,1744177839000,-151.0,0.0002,2]
[357567636,1744177839010,-151.0,0.0002,2]
[357567637,1744177839019,-151.0,0.0002,2]
[357567638,1744177839032,-151.0,0.0002,2]
[357567639,1744177839042,-151.0,0.0002,2]
[357567640,1744177839052,-151.0,0.0002,2]
[357567641,1744177839061,-157.754934,0.0002,2]
[357567642,1744177839070,-151.0,0.0002,2]
[357567643,1744177839079,-151.0,0.0002,2]
[357567644,1744177839089,-151.0,0.0002,2]
[357567645,1744177839098,-151.0,0.0002,2]
[357567646,1744177839108,-151.0,0.0002,2]
[357567647,1744177839118,-151.0,0.0002,2]
[357567648,1744177839127,-151.0,0.0002,2]
[357567649,1744177839137,-151.0,0.0002,2]
[357567650,1744177839146,-151.0,0.0002,2]
[357567651,1744177839155,-151.0,0.0002,2]
[357567652,1744177839165,-151.0,0.0002,2]
[357567653,1744177839174,-173.113902,0.0002,2]
[357567654,1744177839184,-173.113902,0.0002,2]
[357567655,1744177839193,-173.113902,0.0002,2]
[357567656,1744177839203,-173.113902,0.0002,2]
[357567657,1744177839212,-173.113902,0.0002,2]
[357567658,1744177839221,-173.113902,0.0002,2]
[357567659,1744177839231,-151.0,0.0002,2]
[357567660,1744177839241,-151.0,0.0002,2]
[357567661,1744177839250,-151.0,0.0002,2]
[357567662,1744177839260,-2380.684102,0.0002,2]
[357567663,1744177839270,-2380.684102,0.0002,2]
[357567664,1744177839279,-2380.684102,0.0002,2]
[357567665,1744177839289,-2380.684102,0.0002,2]
[357567666,1744177839303,-2380.684102,0.0002,2]
[357567667,1744177839313,-2380.684102,0.0002,2]
[357567668,1744177839324,-151.0,0.0002,2]
[357567669,1744177839334,-164.17992,0.0002,2]
[357567670,1744177839344,-151.0,0.0002,2]
[357567671,1744177839353,-151.0,0.0002,2]
[357567672,1744177839363,-151.0,0.0002,2]
[357567673,1744177839372,-151.77,0.0002,2]
[357567674,1744177839382,-151.77,0.0002,2]
[357567675,1744177839391,-151.77,0.0002,2]
[357567676,1744177839401,-151.0,0.0002,2]
[357567677,1744177839411,-362.67879713,0.0002001,2]
[357567678,1744177839420,-151.0,0.00020145,2]
[357567679,1744177839429,-195.954898,0.00020145,2]
[357567680,1744177839439,-173.113902,0.00020145,2]
[357567681,1744177839448,-173.113902,0.00020145,2]
[357567682,1744177839458,-173.113902,0.00020145,2]
[357567683,1744177839468,-173.113902,0.00020145,2]
[357567684,1744177839478,-151.0,0.00020145,2]
[357567685,1744177839488,-151.0,0.00020145,2]
[357567686,1744177839498,-2380.684102,0.00020145,2]
[357567687,1744177839508,-2380.684102,0.00020145,2]
[357567688,1744177839518,-2380.684102,0.00020145,2]
[357567689,1744177839528,-2380.684102,0.00020145,2]
[357567690,1744177839537,-151.0,0.00020145,2]
[357567691,1744177839550,-151.0,0.00020145,2]
[357567692,1744177839559,-299.99,0.00020145,7]
[357567693,1744177839569,-150.99,0.00020145,2]
[357567694,1744177839579,-16296.07,0.00020145,2]
[357567695,1744177839588,-150.99,0.00020145,2]
[357567696,1744177839598,-9439.49,0.00020145,2]
[357567697,1744177839607,-999.99,0.00020145,2]
[357567698,1744177839616,-499.99,0.00020145,2]
[357567699,1744177839626,-8690.27,0.00020145,2]
[357567700,1744177839635,-986.92,0.00020145,2]
[357567701,1744177839645,-2188.18,0.00020145,2]
[357567702,1744177839654,-332.15,0.00020145,2]
[357567703,1744177839663,-9999.99,0.00020145,2]
[357567704,1744177839672,-151.5,0.00020183,2]
[357567705,1744177839682,-250.0,0.00020453,2]
[357567706,1744177839692,-166.66,0.00020544,2]
[357567707,1744177839701,-168.85,0.00020607,2]
[357567708,1744177839711,-450.11610518,0.00020632,2]
[357567709,1744177839720,-500.0,0.00020685,2]
[357567710,1744177839729,-1621.09075983,0.000207,2]
[357567711,1744177839738,-250.0,0.00020745,2]
[357567712,1744177839748,-151.0,0.0002079,2]
[357567713,1744177839757,-151.0,0.0002079,2]
[357567714,1744177839766,-151.0,0.0002079,2]
[357567715,1744177839775,-151.0,0.00020951,2]
[357567716,1744177839784,-234.003041,0.00020951,2]
[357567717,1744177839794,-151.0,0.00020951,2]
[357567718,1744177839803,-234.003041,0.00020951,2]
[357567719,1744177839812,-151.0,0.00020951,2]
[357567722,1744177840156,-151.0,0.00020951,2]
[357567723,1744177840166,-151.0,0.00020951,2]
[357567724,1744177840175,-500.0,0.00020973,2]
[357567725,1744177840185,-500.0,0.00020973,2]
[357567726,1744177840194,-158.88643086,0.00020973,2]
[357567727,1744177840203,-500.0,0.00020973,2]
[357567728,1744177840212,-503.58895932,0.00020973,2]
[357567729,1744177840221,-506.29712266,0.00020973,2]
[357567730,1744177840231,-151.77,0.0002099,2]
[357567731,1744177840240,-20000.0,0.00021,2]
[357567732,1744177840249,-34863.79447809,0.00021,2]
[357567733,1744177840262,-40000.0,0.00021,2]
[357567734,1744177840402,-151.0,0.0002,2]
[357567735,1744177840412,-296.336641,0.0002,2]
[357567736,1744177840421,-1669.02286468,0.00021,2]
[357567737,1744177840444,-1002.02529139,0.00021,2]
[357567738,1744177840455,-8217.42963743,0.00021,2]
[357567774,1744177843126,-1646.58622981,0.00021,2]
[357567776,1744177843137,-300.0,0.00021,2]
[357567778,1744177843147,-151.0,0.00021,2]
[357567780,1744177843157,-234.003041,0.00021,2]
[357567782,1744177843166,-234.003041,0.00021,2]
[357567784,1744177843176,-151.0,0.00021,2]
[357567786,1744177843185,-151.0,0.00021,2]
[357567788,1744177843194,-234.003041,0.00021,2]
[357567790,1744177843204,-234.003041,0.00021,2]
[357567792,1744177843213,-271.308947,0.00021,2]
[357567794,1744177843223,-259.184416,0.00021,2]
[357567796,1744177843232,-151.0,0.00021,2]
[357567798,1744177843241,-151.0,0.00021,2]
[357567800,1744177843251,-173.113902,0.00021,2]
[357567801,1744177843260,-173.113902,0.00021,2]
[357567802,1744177843269,-173.113902,0.00021,2]
[357567804,1744177843278,-173.113905,0.00021,2]
[357567805,1744177843287,-151.0,0.00021,2]
[357567807,1744177843299,-151.0,0.00021,2]
[357567809,1744177843308,-2380.684102,0.00021,2]
[357567810,1744177843317,-2380.684102,0.00021,2]
[357567812,1744177843327,-2380.684102,0.00021,2]
[357567813,1744177843336,-2380.684098,0.00021,2]
[357567815,1744177843345,-214.632727,0.00021,2]
[357567817,1744177843354,-166.66,0.0002118,2]
[357567818,1744177843364,-819.11,0.00021357,2]
[357567821,1744177843373,-500.0,0.00021373,2]
[357567822,1744177843382,-168.85,0.00021393,2]
[357567824,1744177843392,-94797.03112593,0.000214,2]
[357567826,1744177843401,-151.0,0.000214,2]
[357567827,1744177843410,-234.003041,0.000214,2]
[357567829,1744177843419,-151.0,0.000214,2]
[357567830,1744177843429,-234.003041,0.000214,2]
[357567832,1744177843438,-1000.0,0.00021435,2]
[357567834,1744177843447,-151.5,0.00021528,2]
[357567835,1744177843456,-7032.95843552,0.000217,2]
[357567837,1744177843466,-260.079079,0.00021757,2]
[357567839,1744177843475,-5434.0,0.000218,2]
[357567840,1744177843485,-166.66,0.00021817,2]
[357567841,1744177843495,-2500.0,0.000219,7]
[357567842,1744177843504,-150.0,0.00021917,2]
[357567843,1744177843513,-855.96,0.00021918,2]
[357567844,1744177843527,-300.0,0.00021918,2]
[357567845,1744177843536,-762.13841348,0.00022,7]
[357567846,1744177843546,-234.003041,0.0002214,7]
[357567847,1744177843555,-151.0,0.0002214,7]
[357567848,1744177843565,-234.003037,0.0002214,7]
[357567849,1744177843574,-2044.0,0.0002214,2]
[357567850,1744177843583,-578.523,0.0002214,2]
[357567851,1744177843593,-1293.041,0.0002214,2]
[357567852,1744177843603,-1326.0,0.0002214,2]
[357567853,1744177843612,-907.0,0.0002214,2]
[357567854,1744177843622,-1445.288,0.0002214,2]
[357567855,1744177843631,-1278.0,0.0002214,2]
[357567856,1744177843640,-792.0,0.0002214,2]
[357567857,1744177843653,-4143.0,0.0002214,2]
[357567858,1744177843662,-547.806,0.0002214,2]
[357567859,1744177843672,-3958.0,0.0002214,2]
[357567860,1744177843681,-857.518,0.0002214,2]
[357567861,1744177843691,-270.876,0.0002214,2]
[357567862,1744177843700,-150.0,0.0002214,2]
[357567863,1744177843709,-1120.0,0.0002214,2]
[357567864,1744177843719,-168.85,0.00022178,2]
[357567865,1744177843729,-11440.13023247,0.00022344,2]
[357567866,1744177843738,-11528.45007939,0.00022433,2]
[357567867,1744177843747,-166.66,0.00022453,2]
[357567868,1744177843757,-33024.30372246,0.000225,2]
[357567869,1744177843766,-151.5,0.00022874,2]
[357567870,1744177843777,-350.0,0.00023,2]
[357567871,1744177843787,-255.0,0.00023096,2]
[357567872,1744177843798,-14458.69177306,0.000232,2]
[357567873,1744177843808,-150.0,0.00023287,2]
[357567874,1744177843817,-819.11,0.00023621,2]
[357567875,1744177843827,-1000.0,0.00023817,2]
[357567876,1744177843837,-173.56,0.00023836,2]
[357567877,1744177843846,-663.85587909,0.00024,2]
[357567878,1744177843856,-43225.0462972,0.00024,2]
[357567879,1744177843865,-151.5,0.0002422,2]
[357567880,1744177843875,-150.0,0.00024657,2]
[357567881,1744177843884,-1000.0,0.00024658,2]
[357567882,1744177843895,-500.0,0.00024773,2]
[357567883,1744177843906,-500.0,0.00024773,2]
[357567884,1744177843916,-162.66934286,0.00024773,2]
[357567885,1744177843926,-500.0,0.00024773,2]
[357567886,1744177843935,-151.77,0.0002479,2]
[357567887,1744177843945,-28167.34409744,0.000248,3]
[357567888,1744177844415,-232708.12623556,0.000248,3]
[357567889,1744177844424,-11440.13023247,0.00024889,2]
[357567890,1744177844434,-151.77,0.0002489,2]
[357567891,1744177844443,-232868.24211,0.000249,3]
[357567892,1744177844453,-11528.45007939,0.00024967,2]
[357567893,1744177844462,-232.11504523,0.00025,2]
[357567894,1744177844471,-400.0,0.00025,2]
[357567895,1744177844482,-6139.99999999,0.0002501,2]
[357567896,1744177844491,-2044.0,0.0002514,2]
[357567897,1744177844500,-574.0,0.0002514,2]
[357567898,1744177844509,-1286.0,0.0002514,2]
[357567899,1744177844519,-1326.0,0.0002514,2]
[357567900,1744177844528,-907.0,0.0002514,2]
[357567901,1744177844537,-1436.0,0.0002514,2]
[357567902,1744177844547,-1278.0,0.0002514,2]
[357567903,1744177844556,-791.0,0.0002514,2]
[357567904,1744177844566,-4143.0,0.0002514,2]
[357567905,1744177844576,-544.0,0.0002514,2]